fUST/lending_fUST_20250224
["ID","MTS","AMOUNT","RATE_DAILY","PERIOD"]
[354185839,1740336637921,-500.0,0.00013697,2]
[354185840,1740336637930,-500.0,0.00013697,2]
[354185841,1740336637939,-500.0,0.00013697,2]
[354185842,1740336637948,-500.0,0.00013697,2]
[354185843,1740336637957,-500.0,0.00013697,2]
[354185844,1740336637965,-500.0,0.00013697,2]
[354185845,1740336637974,-500.0,0.00013697,2]
[354185846,1740336637984,-500.0,0.00013697,2]
[354185847,1740336637993,-500.0,0.00013697,2]
[354185848,1740336638002,-500.0,0.00013697,2]
[354185849,1740336638011,-500.0,0.00013697,2]
[354185850,1740336638020,-500.0,0.00013697,2]
[354185851,1740336638029,-500.0,0.00013697,2]
[354185852,1740336638038,-500.0,0.00013697,2]
[354185853,1740336638047,-627.07182458,0.00013697,2]
[354185854,1740336638056,-500.0,0.00013697,2]
[354185855,1740336638066,-500.0,0.00013697,2]
[354185856,1740336638075,-500.0,0.00013697,2]
[354185857,1740336638084,-500.0,0.00013697,2]
[354185858,1740336638093,-500.0,0.00013697,2]
[354185859,1740336638103,-500.0,0.00013697,2]
[354185860,1740336638112,-500.0,0.00013697,2]
[354185861,1740336638121,-500.0,0.00013697,2]
[354185862,1740336638130,-500.0,0.00013697,2]
[354185863,1740336638139,-500.0,0.00013697,2]
[354185864,1740336638149,-500.0,0.00013697,2]
[354185865,1740336638159,-567.86322112,0.00013697,2]
[354185866,1740336638168,-500.0,0.00013697,2]
[354185867,1740336638177,-500.0,0.00013697,2]
[354185868,1740336638186,-500.0,0.00013697,2]
[354185869,1740336638195,-500.0,0.00013697,2]
[354185870,1740336638204,-4431.78450842,0.00013698,2]
[354185871,1740336638214,-500.0,0.00013698,2]
[354185872,1740336638223,-500.0,0.00013698,2]
[354185873,1740336638232,-500.0,0.00013698,2]
[354185874,1740336638241,-500.0,0.00013698,2]
[354185875,1740336638250,-279.62676795,0.00013698,2]
[354185876,1740336638259,-500.0,0.00013698,2]
[354185877,1740336638269,-500.0,0.00013698,2]
[354185878,1740336638278,-500.0,0.00013698,2]
[354185879,1740336638287,-500.0,0.00013698,2]
[354185880,1740336638296,-332.35525799,0.00013698,2]
[354185881,1740336638305,-378.68279585,0.00013698,2]
[354185882,1740336638318,-500.0,0.00013698,2]
[354185883,1740336638331,-500.0,0.00013698,2]
[354185884,1740336638344,-500.0,0.00013698,2]
[354185885,1740336638357,-500.0,0.00013698,2]
[354185886,1740336638369,-500.0,0.00013698,2]
[354185887,1740336638379,-500.0,0.00013698,2]
[354185888,1740336638389,-500.0,0.00013698,2]
[354185889,1740336638402,-500.0,0.00013698,2]
[354185890,1740336638413,-500.0,0.00013698,2]
[354185891,1740336638425,-500.0,0.00013698,2]
[354185892,1740336638437,-500.0,0.00013698,2]
[354185893,1740336638449,-500.0,0.00013698,2]
[354185894,1740336638461,-500.0,0.00013698,2]
[354185895,1740336638473,-689.79,0.00013698,2]
[354185896,1740336638484,-500.0,0.00013698,2]
[354185897,1740336638496,-500.0,0.00013698,2]
[354185898,1740336638507,-500.0,0.00013698,2]
[354185899,1740336638520,-107.82908347,0.00013698,2]
[354185907,1740336640127,-392.17091653,0.00013698,2]
[354185908,1740336640139,-500.0,0.00013698,2]
[354185909,1740336640151,-500.0,0.00013698,2]
[354185910,1740336640163,-500.0,0.00013698,2]
[354185911,1740336640173,-500.0,0.00013698,2]
[354185912,1740336640184,-500.0,0.00013698,2]
[354185913,1740336640194,-500.0,0.00013698,2]
[354185914,1740336640206,-520.83,0.00013698,2]
[354185915,1740336640216,-500.0,0.00013698,2]
[354185916,1740336640227,-646.02043622,0.00013698,2]
[354185917,1740336640236,-500.0,0.00013698,2]
[354185918,1740336640247,-500.0,0.00013698,2]
[354185919,1740336640256,-500.0,0.00013698,2]
[354185920,1740336640267,-500.0,0.00013698,2]
[354185921,1740336640277,-500.0,0.00013698,2]
[354185922,1740336640288,-500.0,0.00013698,2]
[354185923,1740336640299,-500.0,0.00013698,2]
[354185924,1740336640313,-500.0,0.00013698,2]
[354185925,1740336640324,-500.0,0.00013698,2]
[354185926,1740336640335,-587.39,0.00013698,2]
[354185927,1740336640345,-500.0,0.00013698,2]
[354185928,1740336640356,-500.0,0.00013698,2]
[354185929,1740336640368,-554.54,0.00013698,2]
[354185930,1740336640379,-500.0,0.00013698,2]
[354185931,1740336640389,-500.0,0.00013698,2]
[354185932,1740336640399,-500.0,0.00013698,2]
[354185933,1740336640409,-500.0,0.00013698,2]
[354185934,1740336640420,-500.0,0.00013698,2]
[354185935,1740336640431,-500.0,0.00013698,2]
[354185936,1740336640442,-500.0,0.00013698,2]
[354185937,1740336640453,-500.0,0.00013698,2]
[354185938,1740336640463,-500.0,0.00013698,2]
[354185939,1740336640473,-500.0,0.00013698,2]
[354185940,1740336640484,-500.0,0.00013698,2]
[354185941,1740336640494,-502.00862354,0.00013698,2]
[354185942,1740336640505,-500.0,0.00013698,2]
[354185943,1740336640515,-437.79074589,0.00013698,2]
[354185944,1740336640526,-500.0,0.00013698,2]
[354185945,1740336640537,-4603.22,0.00013698,2]
[354185946,1740336640548,-500.0,0.00013698,2]
[354185947,1740336640559,-500.0,0.00013698,2]
[354185948,1740336640569,-615.56,0.00013698,2]
[354185949,1740336640580,-500.0,0.00013698,2]
[354185950,1740336640590,-815.93,0.00013698,2]
[354185951,1740336640600,-815.93,0.00013698,2]
[354185952,1740336640611,-815.93,0.00013698,2]
[354185953,1740336640624,-815.93,0.00013698,2]
[354185954,1740336640635,-502.82270001,0.00013698,2]
[354185955,1740336640646,-500.0,0.00013698,2]
[354185956,1740336640796,-500.0,0.00013698,2]
[354185957,1740336640822,-500.0,0.00013698,2]
[354185958,1740336640832,-526.66,0.00013698,2]
[354185959,1740336640841,-500.0,0.00013698,2]
[354185960,1740336640851,-500.0,0.00013698,2]
[354185961,1740336640862,-500.0,0.00013698,2]
[354185962,1740336640873,-500.0,0.00013698,2]
[354185963,1740336640882,-500.0,0.00013698,2]
[354185964,1740336640891,-500.0,0.00013698,2]
[354185965,1740336640901,-500.0,0.00013698,2]
[354185966,1740336640910,-500.0,0.00013698,2]
[354185967,1740336640919,-500.0,0.00013698,2]
[354185968,1740336640929,-592.69807607,0.00013698,2]
[354185969,1740336640938,-500.0,0.00013698,2]
[354185970,1740336640947,-500.0,0.00013698,2]
[354185971,1740336640956,-500.0,0.00013698,2]
[354185972,1740336640966,-614.9,0.00013698,2]
[354185973,1740336640975,-592.63,0.00013698,2]
[354185974,1740336640984,-500.0,0.00013698,2]
[354185975,1740336640994,-500.0,0.00013698,2]
[354185976,1740336641003,-500.0,0.00013698,2]
[354185977,1740336641012,-500.0,0.00013698,2]
[354185978,1740336641021,-500.0,0.00013698,2]
[354185979,1740336641030,-500.0,0.00013698,2]
[354185980,1740336641039,-501.51922611,0.00013698,2]
[354185981,1740336641048,-959.1,0.00013698,2]
[354185982,1740336641057,-500.0,0.00013698,2]
[354185983,1740336641066,-500.0,0.00013698,2]
[354185984,1740336641075,-500.0,0.00013698,2]
[354185985,1740336641084,-507.08,0.00013698,2]
[354185986,1740336641093,-500.0,0.00013698,2]
[354185987,1740336641102,-500.0,0.00013698,2]
[354185988,1740336641111,-9808.55,0.00013698,2]
[354185989,1740336641122,-500.0,0.00013698,2]
[354185990,1740336641130,-945.02,0.00013698,2]
[354185991,1740336641139,-500.0,0.00013698,2]
[354185992,1740336641148,-500.0,0.00013698,2]
[354185993,1740336641157,-500.0,0.00013698,2]
[354185994,1740336641166,-3161.86,0.00013698,2]
[354185995,1740336641175,-570.70856379,0.00013698,2]
[354185996,1740336641185,-500.0,0.00013698,2]
[354185997,1740336641196,-500.0,0.00013698,2]
[354185998,1740336641205,-500.0,0.00013698,2]
[354185999,1740336641214,-500.0,0.00013698,2]
[354186000,1740336641223,-500.0,0.00013698,2]
[354186001,1740336641232,-500.0,0.00013698,2]
[354186002,1740336641242,-500.0,0.00013698,2]
[354186003,1740336641251,-2266.43,0.00013698,2]
[354186004,1740336641260,-805.22,0.00013698,2]
[354186005,1740336641269,-500.0,0.00013698,2]
[354186006,1740336641278,-500.0,0.00013698,2]
[354186007,1740336641288,-500.0,0.00013698,2]
[354186008,1740336641298,-1957.86,0.00013698,2]
[354186009,1740336641307,-500.0,0.00013698,2]
[354186010,1740336641316,-1108.49,0.00013698,2]
[354186011,1740336641325,-500.0,0.00013698,2]
[354186012,1740336641334,-622.24634332,0.00013698,2]
[354186013,1740336641344,-168.48219964,0.00013698,2]
[354186014,1740336641353,-884.85,0.00013698,2]
[354186015,1740336641362,-500.0,0.00013698,2]
[354186016,1740336641374,-500.0,0.00013698,2]
[354186017,1740336641383,-596.42994496,0.00013698,2]
[354186018,1740336641392,-500.0,0.00013698,2]
[354186019,1740336641402,-500.0,0.00013698,2]
[354186020,1740336641410,-500.0,0.00013698,2]
[354186021,1740336641420,-506.31353594,0.00013698,2]
[354186022,1740336641429,-500.0,0.00013698,2]
[354186023,1740336641438,-500.0,0.00013698,2]
[354186024,1740336641447,-500.0,0.00013698,2]
[354186025,1740336641457,-500.0,0.00013698,2]
[354186026,1740336641466,-500.0,0.00013698,2]
[354186027,1740336641475,-702.1,0.00013698,2]
[354186028,1740336641484,-508.08678673,0.00013698,2]
[354186029,1740336641494,-298.095943,0.00013699,2]
[354186030,1740336641503,-164.46752607,0.00013699,2]
[354186031,1740336641513,-329.56599914,0.00013704,2]
[354186032,1740336641522,-158.46085416,0.00013719,2]
[354186033,1740336641531,-329.56599914,0.00013769,2]
[354186034,1740336641541,-815.93,0.00013778,2]
[354186035,1740336641550,-815.93,0.00013779,2]
[354186036,1740336641560,-815.93,0.00013779,2]
[354186037,1740336641569,-815.93,0.00013779,2]
[354186038,1740336641579,-158.46085416,0.00013779,2]
[354186039,1740336641588,-500.0,0.0001378,2]
[354186040,1740336641598,-500.0,0.0001378,2]
[354186041,1740336641607,-500.0,0.0001378,2]
[354186042,1740336641617,-594.55175346,0.0001378,2]
[354186043,1740336641627,-500.0,0.0001378,2]
[354186044,1740336641636,-503.42446607,0.0001378,2]
[354186045,1740336641645,-500.0,0.0001378,2]
[354186046,1740336641655,-151.0,0.0001378,2]
[354186047,1740336641665,-500.0,0.0001378,2]
[354186048,1740336641674,-337.8382426,0.0001378,2]
[354186049,1740336641683,-500.0,0.0001378,2]
[354186050,1740336641693,-500.0,0.0001378,2]
[354186051,1740336641704,-500.0,0.0001378,2]
[354186052,1740336641713,-514.52457317,0.0001378,2]
[354186053,1740336641723,-500.0,0.0001378,2]
[354186054,1740336641733,-500.0,0.0001378,2]
[354186055,1740336641742,-500.0,0.0001378,2]
[354186056,1740336641752,-689.79,0.0001378,2]
[354186057,1740336641761,-500.0,0.0001378,2]
[354186058,1740336641773,-500.0,0.0001378,2]
[354186059,1740336641790,-245.87,0.0001378,2]
[354186060,1740336641800,-500.0,0.0001378,2]
[354186061,1740336641809,-500.0,0.0001378,2]
[354186062,1740336641819,-500.0,0.0001378,2]
[354186063,1740336641828,-500.0,0.0001378,2]
[354186064,1740336641837,-500.0,0.0001378,2]
[354186065,1740336641847,-500.0,0.0001378,2]
[354186066,1740336641856,-580.2,0.0001378,2]
[354186067,1740336641866,-500.0,0.0001378,2]
[354186068,1740336641875,-500.0,0.0001378,2]
[354186069,1740336641885,-500.0,0.0001378,2]
[354186070,1740336641894,-587.39,0.0001378,2]
[354186071,1740336641903,-500.0,0.0001378,2]
[354186072,1740336641912,-500.0,0.0001378,2]
[354186073,1740336641922,-500.0,0.0001378,2]
[354186074,1740336641931,-500.0,0.0001378,2]
[354186075,1740336641940,-577.19376363,0.0001378,2]
[354186076,1740336641949,-500.0,0.0001378,2]
[354186077,1740336641958,-290.85,0.0001378,2]
[354186078,1740336641967,-4603.22,0.0001378,2]
[354186079,1740336641977,-615.56,0.0001378,2]
[354186080,1740336641986,-500.0,0.0001378,2]
[354186081,1740336641995,-613.07,0.0001378,2]
[354186082,1740336642005,-500.0,0.0001378,2]
[354186083,1740336642015,-500.0,0.0001378,2]
[354186084,1740336642025,-361.91775934,0.0001378,2]
[354186085,1740336642034,-500.0,0.0001378,2]
[354186086,1740336642043,-500.0,0.0001378,2]
[354186087,1740336642051,-509.80972389,0.0001378,2]
[354186088,1740336642060,-500.0,0.0001378,2]
[354186089,1740336642069,-592.63,0.0001378,2]
[354186090,1740336642078,-340.39583103,0.0001378,2]
[354186091,1740336642088,-500.0,0.0001378,2]
[354186092,1740336642097,-500.0,0.0001378,2]
[354186093,1740336642107,-959.1,0.0001378,2]
[354186094,1740336642116,-500.0,0.0001378,2]
[354186095,1740336642126,-500.0,0.0001378,2]
[354186096,1740336642135,-500.0,0.0001378,2]
[354186097,1740336642145,-500.0,0.0001378,2]
[354186098,1740336642154,-500.0,0.0001378,2]
[354186099,1740336642163,-9808.55,0.0001378,2]
[354186100,1740336642173,-500.0,0.0001378,2]
[354186101,1740336642182,-945.02,0.0001378,2]
[354186102,1740336642191,-500.0,0.0001378,2]
[354186103,1740336642200,-3161.86,0.0001378,2]
[354186104,1740336642210,-500.0,0.0001378,2]
[354186105,1740336642219,-500.0,0.0001378,2]
[354186106,1740336642228,-500.0,0.0001378,2]
[354186107,1740336642237,-500.0,0.0001378,2]
[354186108,1740336642247,-500.0,0.0001378,2]
[354186109,1740336642256,-2266.43,0.0001378,2]
[354186110,1740336642265,-805.22,0.0001378,2]
[354186111,1740336642275,-500.0,0.0001378,2]
[354186112,1740336642283,-500.0,0.0001378,2]
[354186113,1740336642293,-500.0,0.0001378,2]
[354186114,1740336642302,-1957.86,0.0001378,2]
[354186115,1740336642311,-1108.49,0.0001378,2]
[354186116,1740336642320,-884.85,0.0001378,2]
[354186117,1740336642329,-500.0,0.0001378,2]
[354186118,1740336642339,-500.0,0.0001378,2]
[354186119,1740336642348,-500.0,0.0001378,2]
[354186120,1740336642357,-500.0,0.0001378,2]
[354186121,1740336642366,-500.0,0.0001378,2]
[354186122,1740336642376,-500.0,0.0001378,2]
[354186123,1740336642386,-500.0,0.0001378,2]
[354186124,1740336642395,-500.0,0.0001378,2]
[354186125,1740336642404,-500.0,0.0001378,2]
[354186126,1740336642413,-702.1,0.0001378,2]
[354186127,1740336642422,-289.511,0.00013795,2]
[354186128,1740336642431,-151.0,0.000138,2]
[354186129,1740336642441,-151.0,0.000138,2]
[354186130,1740336642450,-329.56599914,0.00013835,2]
[354186131,1740336642459,-158.46085416,0.0001384,2]
[354186132,1740336642469,-815.93,0.00013862,2]
[354186133,1740336642478,-815.93,0.00013862,2]
[354186134,1740336642487,-318.439763,0.00013863,2]
[354186135,1740336642496,-500.0,0.00013863,2]
[354186136,1740336642505,-504.92,0.00013863,2]
[354186137,1740336642515,-500.0,0.00013863,2]
[354186138,1740336642524,-500.0,0.00013863,2]
[354186139,1740336642533,-500.0,0.00013863,2]
[354186140,1740336642542,-151.0,0.00013863,2]
[354186143,1740336642551,-500.0,0.00013863,2]
[354186147,1740336642561,-500.0,0.00013863,2]
[354186151,1740336642570,-500.0,0.00013863,2]
[354186153,1740336642579,-500.0,0.00013863,2]
[354186154,1740336642588,-500.0,0.00013863,2]
[354186155,1740336642598,-689.79,0.00013863,2]
[354186156,1740336642607,-179.55,0.00013863,2]
[354186157,1740336642616,-500.0,0.00013863,2]
[354186159,1740336642627,-500.0,0.00013863,2]
[354186160,1740336642636,-500.0,0.00013863,2]
[354186161,1740336642645,-500.0,0.00013863,2]
[354186162,1740336642654,-500.0,0.00013863,2]
[354186163,1740336642663,-500.0,0.00013863,2]
[354186165,1740336642672,-587.39,0.00013863,2]
[354186167,1740336642682,-500.0,0.00013863,2]
[354186168,1740336642691,-500.0,0.00013863,2]
[354186170,1740336642701,-4603.22,0.00013863,2]
[354186171,1740336642710,-615.56,0.00013863,2]
[354186172,1740336642719,-500.0,0.00013863,2]
[354186173,1740336642729,-500.0,0.00013863,2]
[354186174,1740336642738,-333.89126006,0.00013863,2]
[354186175,1740336642747,-500.0,0.00013863,2]
[354186176,1740336642756,-592.63,0.00013863,2]
[354186177,1740336642766,-331.65,0.00013863,2]
[354186179,1740336642780,-500.0,0.00013863,2]
[354186181,1740336642789,-959.1,0.00013863,2]
[354186182,1740336642798,-500.0,0.00013863,2]
[354186183,1740336642807,-500.0,0.00013863,2]
[354186184,1740336642818,-500.0,0.00013863,2]
[354186186,1740336642827,-9808.55,0.00013863,2]
[354186187,1740336642837,-500.0,0.00013863,2]
[354186188,1740336642846,-945.02,0.00013863,2]
[354186189,1740336642855,-247.62,0.00013863,2]
[354186190,1740336642864,-3161.86,0.00013863,2]
[354186191,1740336642875,-256.6,0.00013863,2]
[354186192,1740336642885,-500.0,0.00013863,2]
[354186193,1740336642894,-500.0,0.00013863,2]
[354186194,1740336642904,-500.0,0.00013863,2]
[354186195,1740336642913,-2266.43,0.00013863,2]
[354186196,1740336642922,-805.22,0.00013863,2]
[354186197,1740336642931,-209.7319382,0.00013863,2]
[354186198,1740336642940,-500.0,0.00013863,2]
[354186199,1740336642949,-1957.86,0.00013863,2]
[354186200,1740336642958,-1108.49,0.00013863,2]
[354186201,1740336642967,-884.85,0.00013863,2]
[354186202,1740336642976,-500.0,0.00013863,2]
[354186203,1740336642986,-500.0,0.00013863,2]
[354186204,1740336642995,-500.0,0.00013863,2]
[354186205,1740336643004,-500.0,0.00013863,2]
[354186206,1740336643013,-500.0,0.00013863,2]
[354186207,1740336643022,-500.0,0.00013863,2]
[354186208,1740336643031,-500.0,0.00013863,2]
[354186209,1740336643040,-702.1,0.00013863,2]
[354186210,1740336643050,-3000.0,0.000139,2]
[354186211,1740336643059,-158.46085416,0.000139,2]
[354186212,1740336643069,-151.0,0.000139,2]
[354186213,1740336643078,-151.0,0.000139,2]
[354186214,1740336643087,-151.0,0.000139,2]
[354186215,1740336643097,-151.0,0.000139,2]
[354186216,1740336643106,-329.56599914,0.000139,2]
[354186217,1740336643115,-3176.33183461,0.000139,2]
[354186218,1740336643126,-168.13888515,0.000139,2]
[354186219,1740336643135,-168.13888515,0.000139,2]
[354186220,1740336643145,-168.13888515,0.000139,2]
[354186221,1740336643155,-168.13888515,0.000139,2]
[354186222,1740336643164,-168.13888515,0.000139,2]
[354186223,1740336643173,-168.13888515,0.000139,2]
[354186224,1740336643183,-168.13,0.000139,2]
[354186225,1740336643192,-152.57046986,0.000139,2]
[354186226,1740336643201,-152.57046986,0.000139,2]
[354186227,1740336643210,-152.57046986,0.000139,2]
[354186228,1740336643220,-152.57046986,0.000139,2]
[354186229,1740336643229,-152.57046986,0.000139,2]
[354186230,1740336643238,-152.57046986,0.000139,2]
[354186231,1740336643247,-152.57046986,0.000139,2]
[354186232,1740336643256,-152.57046986,0.000139,2]
[354186233,1740336643350,-152.57046986,0.000139,2]
[354186234,1740336643360,-152.57046986,0.000139,2]
[354186235,1740336643369,-152.57046986,0.000139,2]
[354186236,1740336643379,-152.57046986,0.000139,2]
[354186237,1740336643388,-152.57046986,0.000139,2]
[354186238,1740336643398,-152.57046986,0.000139,2]
[354186239,1740336643407,-152.57046986,0.000139,2]
[354186240,1740336643416,-152.57046986,0.000139,2]
[354186241,1740336643425,-152.57046986,0.000139,2]
[354186242,1740336643435,-152.57,0.000139,2]
[354186243,1740336643444,-154.60409759,0.000139,2]
[354186244,1740336643454,-154.60409759,0.000139,2]
[354186245,1740336643463,-154.60409759,0.000139,2]
[354186246,1740336643473,-154.60409759,0.000139,2]
[354186247,1740336643482,-154.60409759,0.000139,2]
[354186248,1740336643492,-154.60409759,0.000139,2]
[354186249,1740336643501,-154.60409759,0.000139,2]
[354186250,1740336643510,-154.60409759,0.000139,2]
[354186251,1740336643519,-154.60409759,0.000139,2]
[354186252,1740336643529,-154.60409759,0.000139,2]
[354186253,1740336643538,-154.60409759,0.000139,2]
[354186254,1740336643547,-154.60409759,0.000139,2]
[354186255,1740336643557,-154.60409759,0.000139,2]
[354186256,1740336643566,-154.6,0.000139,2]
[354186257,1740336643575,-252.52002606,0.000139,2]
[354186258,1740336643584,-252.52002606,0.000139,2]
[354186259,1740336643593,-252.52002606,0.000139,2]
[354186260,1740336643602,-252.52002606,0.000139,2]
[354186261,1740336643611,-252.52002606,0.000139,2]
[354186262,1740336643622,-252.52002606,0.000139,2]
[354186263,1740336643631,-252.52002606,0.000139,2]
[354186264,1740336643641,-252.52002606,0.000139,2]
[354186265,1740336643650,-252.52002606,0.000139,2]
[354186266,1740336643659,-252.52002606,0.000139,2]
[354186267,1740336643669,-252.52002606,0.000139,2]
[354186268,1740336643678,-252.52002606,0.000139,2]
[354186269,1740336643687,-252.52002606,0.000139,2]
[354186270,1740336643697,-252.52002606,0.000139,2]
[354186271,1740336643706,-252.52002606,0.000139,2]
[354186272,1740336643715,-252.52002606,0.000139,2]
[354186273,1740336643724,-252.52002606,0.000139,2]
[354186274,1740336643733,-252.52002606,0.000139,2]
[354186275,1740336643743,-252.52002606,0.000139,2]
[354186276,1740336643752,-252.52,0.000139,2]
[354186277,1740336643762,-12332.37625363,0.00013922,2]
[354186278,1740336643771,-323.0,0.0001393,2]
[354186279,1740336643783,-815.93,0.00013944,2]
[354186280,1740336643792,-815.93,0.00013944,2]
[354186281,1740336643802,-318.439763,0.00013945,2]
[354186282,1740336643811,-191.95,0.00013945,2]
[354186283,1740336643820,-214.61235689,0.00013945,2]
[354186284,1740336643830,-500.0,0.00013945,2]
[354186285,1740336643839,-151.0,0.00013945,2]
[354186286,1740336643848,-500.0,0.00013945,2]
[354186287,1740336643858,-500.0,0.00013945,2]
[354186288,1740336643867,-500.0,0.00013945,2]
[354186289,1740336643877,-500.0,0.00013945,2]
[354186290,1740336643886,-500.0,0.00013945,2]
[354186291,1740336643895,-689.79,0.00013945,2]
[354186292,1740336643904,-500.0,0.00013945,2]
[354186293,1740336643913,-614.4,0.00013945,2]
[354186294,1740336643923,-500.0,0.00013945,2]
[354186295,1740336643932,-500.0,0.00013945,2]
[354186296,1740336643941,-587.39,0.00013945,2]
[354186297,1740336643950,-500.0,0.00013945,2]
[354186298,1740336643959,-4603.22,0.00013945,2]
[354186299,1740336643969,-615.56,0.00013945,2]
[354186300,1740336643978,-500.0,0.00013945,2]
[354186301,1740336643987,-379.47,0.00013945,2]
[354186302,1740336643996,-592.63,0.00013945,2]
[354186303,1740336644005,-500.0,0.00013945,2]
[354186304,1740336644015,-959.1,0.00013945,2]
[354186305,1740336644024,-500.0,0.00013945,2]
[354186306,1740336644033,-500.0,0.00013945,2]
[354186307,1740336644042,-641.26,0.00013945,2]
[354186308,1740336644051,-9808.55,0.00013945,2]
[354186309,1740336644060,-500.0,0.00013945,2]
[354186310,1740336644069,-945.02,0.00013945,2]
[354186311,1740336644078,-3161.86,0.00013945,2]
[354186312,1740336644088,-500.0,0.00013945,2]
[354186313,1740336644097,-227.28,0.00013945,2]
[354186314,1740336644106,-500.0,0.00013945,2]
[354186315,1740336644116,-2266.43,0.00013945,2]
[354186316,1740336644128,-805.22,0.00013945,2]
[354186317,1740336644139,-1957.86,0.00013945,2]
[354186318,1740336644148,-1108.49,0.00013945,2]
[354186319,1740336644157,-884.85,0.00013945,2]
[354186320,1740336644166,-500.0,0.00013945,2]
[354186321,1740336644176,-500.0,0.00013945,2]
[354186322,1740336644185,-500.0,0.00013945,2]
[354186323,1740336644194,-500.0,0.00013945,2]
[354186324,1740336644204,-500.0,0.00013945,2]
[354186325,1740336644213,-702.1,0.00013945,2]
[354186326,1740336644222,-166.0,0.00013982,2]
[354186327,1740336644231,-166.0,0.00013982,2]
[354186328,1740336644240,-166.0,0.00013982,2]
[354186329,1740336644250,-252.0,0.00013982,2]
[354186330,1740336644259,-500.0,0.00013988,2]
[354186331,1740336644268,-501.14429813,0.00013995,2]
[354186332,1740336644277,-500.0,0.00013999,2]
[354186333,1740336644286,-500.0,0.00013999,2]
[354186334,1740336644295,-289.42265862,0.00013999,2]
[354186335,1740336644304,-597.6685877,0.00013999,2]
[354186336,1740336644314,-815.93,0.00013999,2]
[354186337,1740336644323,-815.93,0.00013999,2]
[354186338,1740336644332,-815.93,0.00013999,2]
[354186339,1740336644341,-815.93,0.00013999,2]
[354186340,1740336644350,-815.93,0.00013999,2]
[354186341,1740336644360,-815.93,0.00013999,2]
[354186342,1740336644370,-815.93,0.00013999,2]
[354186343,1740336644379,-815.93,0.00013999,2]
[354186344,1740336644388,-815.93,0.00013999,2]
[354186345,1740336644398,-815.93,0.00013999,2]
[354186346,1740336644407,-815.93,0.00013999,2]
[354186347,1740336644416,-816.06,0.00013999,2]
[354186348,1740336644425,-96443.92425058,0.00014,5]
[354186349,1740336644434,-10189.44703374,0.00014,5]
[354186350,1740336644444,-1165197.94261787,0.00014,5]
[354186356,1740337719367,186.496092,9.041e-05,2]
[354186397,1740337832323,-250.0,0.00012525,2]
[354186399,1740337832333,-300.0,0.00012607,2]
[354186402,1740337832343,-8715.71040895,0.00012608,2]
[354186418,1740337838160,-9289.43812165,0.00012608,2]
[354186419,1740337838170,-600.0,0.00012664,2]
[354186420,1740337838183,-396.0,0.00013098,2]
[354186421,1740337838193,-161.414143,0.00013492,5]
[354186422,1740337838201,-153.31704571,0.000135,2]
[354186423,1740337838211,-150.0,0.00013563,2]
[354186424,1740337838223,-150.0,0.00013563,2]